bitfinex-derivatives/quotes_ETHF0:USTF0_20241022
["timestamp","ask_amount","ask_price","bid_price","bid_amount"]
[1729627096135,0.38007,2632.3,2631.6,0.95041]
[1729627096444,1.6154,2632.3,2632.2,1.75008]
[1729627096647,0.803,2632.3,2632.2,1.75008]
[1729627097244,2.173,2632.3,2632.2,2.53618]
[1729627097939,3.2078,2633.3,2632.3,0.95016]
[1729627098149,1.37,2632.8,2632.7,1.37]
[1729627098343,1.37,2632.8,2632.7,1.75]
[1729627098747,1.37,2632.8,2632.6,3.2078]
[1729627098748,1.37,2632.8,2632.6,4.95781]
[1729627099053,1.37,2632.7,2632.6,4.95781]
[1729627099548,1.37,2632.7,2632.6,8.75621]
[1729627100843,1.37,2632.7,2632.6,12.55473617]
[1729627102557,1.37,2632.8,2632.6,12.17472617]
[1729627102746,2.14,2632.9,2632.8,1.74999]
[1729627102949,2.14,2632.9,2632.6,8.37632617]
[1729627103251,1.37,2632.8,2632.7,0.38]
[1729627105340,1.37,2632.8,2632.7,1.75]
[1729627107256,0.77,2632.9,2632.7,5.1684]
[1729627107451,1.19232,2633.3,2633.1,0.37994]
[1729627107652,0.75,2633.3,2633.2,1.74993]
[1729627107949,2.12,2633.3,2633.2,1.74993]
[1729627108458,0.75,2633.3,2633.2,5.54753]
[1729627108650,1.37,2633.5,2633.2,8.3754]
[1729627108948,1.37,2633.5,2633.4,1.7499]
[1729627109653,1.37,2633.5,2633.4,2.555]
[1729627110447,1.37,2633.5,2633.4,0.8051]
[1729627110653,1.74989,2633.5,2633.3,1.16052]
[1729627110846,1.74989,2633.5,2633.3,0.7806]
[1729627110847,1.37,2633.4,2633.3,0.7806]
[1729627111345,1.37,2633.4,2633.3,4.5782]
[1729627111854,1.37,2633.4,2633.3,4.95812]
[1729627112956,1.37,2633.4,2633.3,4.5782]
[1729627113151,1.37,2633.4,2633.3,0.7806]
[1729627113457,1.37,2633.4,2633.3,4.95812]
[1729627113955,1.7499,2633.4,2633.3,7.786]
[1729627114153,1.7499,2633.4,2633.3,3.2078]
[1729627119059,1.7499,2633.4,2633.3,3.79751642]
[1729627123060,1.7499,2633.4,2633.3,5.16751642]
[1729627123259,1.7499,2633.4,2633.3,5.54743642]
[1729627123560,0.3799,2633.4,2633.3,5.16751642]
[1729627123962,0.3799,2633.4,2633.3,5.54743642]
[1729627124361,0.3799,2633.4,2633.3,5.16751642]
[1729627124564,0.3799,2633.4,2633.3,5.54743642]
[1729627124865,0.3799,2633.4,2633.3,5.16751642]
[1729627125264,0.3799,2633.4,2633.3,5.54743642]
[1729627125663,1.7499,2633.4,2633.3,5.54743642]
[1729627127757,1.5272,2633.6,2633.3,5.54743642]
[1729627127963,1.90707,2633.6,2633.5,1.37]
[1729627128160,3.27707,2633.6,2633.5,1.37]
[1729627129071,3.27707,2633.6,2633.5,1.74989]
[1729627129072,1.5272,2633.6,2633.5,1.74989]
[1729627129265,2.51227,2633.6,2633.5,1.37]
[1729627129466,2.1324,2633.6,2633.5,1.37]
[1729627129668,2.51227,2633.6,2633.4,5.4162]
[1729627129868,1.37,2633.5,2633.4,5.7961]
[1729627130662,1.37,2633.5,2633.4,5.4162]
[1729627130867,1.37,2633.5,2633.4,4.0462]
[1729627131064,1.37,2633.5,2633.4,5.7961]
[1729627131468,1.37,2633.5,2633.4,4.0462]
[1729627131670,1.37,2633.5,2633.4,4.4261]
[1729627131966,1.37,2633.5,2633.4,5.4162]
[1729627132172,1.37,2633.5,2633.4,4.0462]
[1729627132873,1.37,2633.5,2633.4,0.8384]
[1729627133065,1.74989,2633.5,2633.3,4.63861642]
[1729627133268,1.37,2633.4,2633.3,4.63861642]
[1729627133469,1.7499,2633.4,2633.3,4.63861642]
[1729627134066,1.37,2633.4,2633.3,4.63861642]
[1729627134269,1.7499,2633.4,2633.3,4.63861642]
[1729627138477,1.7499,2633.4,2633.3,3.79751642]
[1729627139472,2.6308,2633.4,2633.3,3.79751642]
[1729627139673,1.2608,2633.4,2633.3,5.16751642]
[1729627139976,1.2608,2633.4,2633.3,3.79751642]
[1729627139977,2.6308,2633.4,2633.3,3.79751642]
[1729627140880,2.6308,2633.4,2633.3,2.02472517]
[1729627141076,2.6308,2633.4,2633.3,1.88922843]
[1729627141469,7.4185,2633.4,2632.7,3.2078]
[1729627141681,1.37,2632.8,2632.7,2.00210557]
[1729627141976,1.37,2632.8,2632.6,5.16852617]
[1729627142167,1.37,2632.7,2632.6,5.16852617]
[1729627142676,1.75,2632.7,2632.6,3.79852617]
[1729627143282,2.74008358,2632.9,2632.6,3.79852617]
[1729627143577,3.12,2632.7,2632.6,3.79852617]
[1729627143875,3.12,2632.7,2632.6,2.61408854]
[1729627144083,5.5484,2632.7,2632.6,2.61408854]
[1729627145173,1.75,2632.7,2632.6,2.61408854]
[1729627146374,1.75,2632.7,2632.6,1.24626768]
[1729627146580,0.38008,2632.2,2631.8,0.38013]
[1729627146787,1.37,2631.9,2631.7,2.4316]
[1729627146989,1.37,2631.8,2631.7,2.4316]
[1729627147891,1.6161,2632.1,2631.7,7.98174]
[1729627147892,1.37,2631.9,2631.7,7.98174]
[1729627148085,1.37,2631.8,2631.7,2.81174]
[1729627148380,1.37,2631.8,2631.7,2.81175]
[1729627148583,1.37,2631.8,2631.7,4.18175]
[1729627149079,1.37,2631.8,2631.7,3.8016]
[1729627149286,1.37,2631.8,2631.7,4.18175]
[1729627149788,1.37,2631.8,2631.7,3.8016]
[1729627149977,1.37,2631.8,2631.7,2.4316]
[1729627150378,1.37,2631.8,2631.7,3.8016]
[1729627151490,0.18661442,2632.3,2631.8,0.38013]
[1729627151680,1.37,2632.4,2632.2,1.37]
[1729627151877,1.37,2632.4,2632.3,3.0036]
[1729627152191,1.75005,2632.4,2632.3,1.6336]
[1729627152382,1.5567482,2632.4,2632.0,3.2078]
[1729627152584,1.37,2632.1,2631.8,0.38013]
[1729627152783,0.3801,2632.1,2631.9,1.37]
[1729627153093,1.37,2632.0,2631.6,3.8301]
[1729627153291,1.37,2631.8,2631.6,3.8301]
[1729627153481,1.37,2631.8,2631.6,4.21026]
[1729627153682,1.75013,2631.9,2631.7,5.17]
[1729627153881,1.75013,2631.9,2631.7,1.37]
[1729627154383,0.38013,2631.8,2631.7,1.37]
[1729627154780,0.38013,2631.8,2631.7,5.17]
[1729627154981,1.75013,2631.8,2631.7,5.17]
[1729627155293,1.75014,2631.8,2631.6,4.21025]
[1729627155591,1.75015,2631.7,2631.6,4.21025]
[1729627155983,1.37,2631.7,2631.6,8.01025]
[1729627156179,1.024,2632.2,2631.6,7.6301]
[1729627156388,1.37,2632.0,2631.9,1.75012]
[1729627156690,1.75012,2632.0,2631.8,1.75013]
[1729627156987,1.75012,2631.9,2631.8,1.75013]
[1729627157388,1.75012,2631.9,2631.8,4.18013]
[1729627157777,1.75012,2631.9,2631.8,3.8]
[1729627157981,0.38014,2631.8,2631.6,2.03536]
[1729627158194,1.024,2632.2,2631.6,3.40536]
[1729627158195,1.75015,2631.7,2631.6,3.40536]
[1729627158388,1.75015,2631.7,2631.6,3.0252]
[1729627158590,1.75015,2631.7,2631.6,1.6552]
[1729627158783,4.95795,2631.7,2631.6,1.6552]
[1729627158990,0.38022,2631.2,2631.1,7.08448426]
[1729627159289,1.75022,2631.2,2631.1,7.08448426]
[1729627159682,4.95802,2631.2,2631.1,7.08448426]
[1729627159989,8.75882,2631.2,2631.1,3.19458426]
[1729627160291,10.35882,2631.2,2631.1,3.19458426]
[1729627160995,10.35882,2631.2,2631.1,2.09299729]
[1729627161386,10.35882,2631.2,2631.1,1.83004919]
[1729627161983,10.87221503,2631.2,2631.1,1.83004919]
[1729627162684,11.52782,2631.2,2631.1,1.83004919]
[1729627164088,6.1778,2631.2,2631.1,1.83004919]
[1729627164295,2.97,2631.2,2631.1,1.83004919]
[1729627164599,2.97,2631.2,2631.1,3.48974919]
[1729627165191,3.35022,2631.2,2631.1,3.48974919]
[1729627165391,10.35882,2631.2,2631.1,1.83004919]
[1729627166292,11.59682,2631.2,2631.1,1.83004919]
[1729627167302,11.59682,2631.2,2631.1,1.10707999]
[1729627168802,10.35882,2631.2,2631.1,1.10707999]
[1729627168999,11.68682,2631.2,2631.1,1.10707999]
[1729627170496,3.8008,2631.1,2629.8,7.60514106]
[1729627170691,3.58809,2630.8,2630.3,0.38034]
[1729627170895,0.18870222,2630.7,2630.3,0.38034]
[1729627171095,3.58809,2630.8,2630.0,2.97]
[1729627171096,4.98108,2630.8,2630.0,2.97]
[1729627171396,3.2078,2630.8,2630.2,2.97]
[1729627171593,3.40080389,2630.8,2630.0,2.97]
[1729627171794,3.78108389,2630.8,2630.0,2.97]
[1729627172000,3.78108389,2630.8,2630.3,0.38035]
[1729627172301,2.95039217,2630.9,2630.3,0.38035]
[1729627172602,3.2078,2631.0,2630.3,6.1778]
[1729627172799,0.1912147,2631.0,2630.3,3.2078]
[1729627173099,2.97,2630.6,2630.3,3.2078]
[1729627173302,3.35031,2630.6,2630.5,3.2078]
[1729627173698,2.97,2630.8,2630.5,3.2078]
[1729627173893,0.38031,2630.6,2630.5,3.2078]
[1729627174104,0.3803,2630.7,2630.3,0.38035]
[1729627174301,0.38028,2630.8,2630.5,3.2078]
[1729627174603,0.38029,2630.8,2630.6,0.8568]
[1729627174904,0.38029,2630.8,2630.7,0.8433]
[1729627175399,3.35029,2630.8,2630.7,0.8433]
[1729627176292,3.35028,2630.8,2630.7,0.8433]
[1729627176493,1.77327,2630.9,2630.7,0.8433]
[1729627176700,0.38028,2630.8,2630.7,0.8433]
[1729627176897,4.363,2630.9,2630.7,0.8433]
[1729627177197,4.93558476,2630.9,2630.7,0.8433]
[1729627177397,4.55530476,2630.9,2630.7,0.8433]
[1729627177596,0.38028,2630.8,2630.7,0.8433]
[1729627177801,4.93557476,2630.9,2630.7,0.8433]
[1729627178004,0.38028,2630.8,2630.7,0.8433]
[1729627178194,4.93557476,2630.9,2630.7,0.8433]
[1729627178400,4.55530476,2630.9,2630.7,0.8433]
[1729627178604,0.38028,2630.8,2630.7,0.8433]
[1729627179599,4.55530476,2630.9,2630.7,0.8433]
[1729627179802,4.55530476,2630.9,2630.7,4.64456962]
[1729627180004,0.38028,2630.8,2630.7,4.64456962]
[1729627183610,3.16230476,2630.9,2630.7,4.64456962]
[1729627183611,0.19230476,2630.9,2630.7,4.64456962]
[1729627183808,1.393,2630.9,2630.7,4.64456962]
[1729627184003,0.19000403,2630.8,2630.7,4.64456962]
[1729627185118,0.38027,2630.9,2630.7,4.64456962]
[1729627185303,4.55450807,2631.1,2630.7,4.64456962]
[1729627185500,0.38025,2631.0,2630.7,4.64456962]
[1729627185903,2.97,2631.1,2630.7,4.64456962]
[1729627186109,3.53893038,2631.1,2630.7,5.02484962]
[1729627186310,0.38026,2631.0,2630.7,4.64456962]
[1729627186702,3.15869038,2631.1,2630.7,4.64456962]
[1729627187108,0.38026,2631.0,2630.7,4.64456962]
[1729627187410,2.97,2630.9,2630.7,4.64456962]
[1729627187606,0.38028,2630.8,2630.7,4.64456962]
[1729627189410,2.97,2630.9,2630.7,4.64456962]
[1729627189818,0.38028,2630.8,2630.7,4.64456962]
[1729627190314,2.97,2630.9,2630.7,4.64456962]
[1729627190705,0.38028,2630.8,2630.7,4.64456962]
[1729627191503,0.38028,2630.8,2630.7,3.80126962]
[1729627191708,5.57408,2630.8,2630.7,3.42227062]
[1729627191919,0.38035,2630.3,2630.2,0.8776]
[1729627192118,3.35035,2630.3,2630.2,0.8776]
[1729627192936,2.97,2630.3,2630.2,0.8776]
[1729627193142,3.35033,2630.5,2630.2,0.8776]
[1729627194940,0.38034,2630.4,2630.2,0.8776]
[1729627195140,2.97,2630.5,2630.2,0.8776]
[1729627195141,3.35033,2630.5,2630.2,0.8776]
[1729627195342,2.97,2630.5,2630.2,0.8776]
[1729627195843,0.38034,2630.4,2630.2,0.8776]
[1729627196042,2.97,2630.3,2630.2,0.8776]
[1729627196847,3.35035,2630.3,2630.2,0.8776]
[1729627200239,3.35035,2630.3,2630.0,0.8825]
[1729627200240,0.38038,2630.1,2630.0,0.8825]
[1729627200441,3.35038,2630.1,2630.0,0.8825]
[1729627202042,2.97,2630.1,2630.0,0.8825]
[1729627202446,3.35038,2630.1,2630.0,0.8825]
[1729627205750,3.2078,2630.4,2630.0,0.8825]
[1729627205751,0.38037,2630.2,2630.0,0.8825]
[1729627206047,0.38038,2630.1,2630.0,0.8825]
[1729627206955,3.35038,2630.1,2630.0,0.8825]
[1729627207652,0.38039,2630.0,2629.9,5.56372594]
[1729627207842,4.18279,2630.0,2629.9,3.80242594]
[1729627216055,3.35039,2630.0,2629.9,3.80242594]
[1729627216249,3.35039,2630.0,2629.9,6.47932594]
[1729627219346,4.76039,2630.0,2629.9,6.47932594]
[1729627223062,4.18281,2629.9,2629.8,0.95514106]
[1729627223260,4.56181,2629.9,2629.8,0.95514106]
[1729627223864,3.8032,2629.8,2628.9,3.80387234]
[1729627224058,1.3019,2629.7,2629.0,0.8687]
[1729627224255,2.97,2629.1,2629.0,0.8687]
[1729627227867,3.35052,2629.1,2629.0,0.8687]
[1729627228258,8.05902,2629.1,2629.0,0.8687]
[1729627230559,0.38054,2629.0,2628.9,3.80387234]
[1729627230761,4.18454,2629.0,2628.9,3.80387234]
[1729627232160,4.18454,2629.0,2628.9,3.07969334]
[1729627232764,3.804,2629.0,2628.9,3.07969334]
[1729627233063,2.97,2629.0,2628.9,3.07969334]
[1729627233262,3.35054,2629.0,2628.9,3.07969334]
[1729627233654,2.97,2629.0,2628.9,3.07969334]
[1729627233858,3.35054,2629.0,2628.9,3.07969334]
[1729627236165,4.396,2629.0,2628.9,3.07969334]
[1729627236372,1.426,2629.1,2628.9,3.07969334]
[1729627236569,2.97,2629.2,2629.0,0.8706]
[1729627236871,2.97,2629.2,2629.0,2.11133]
[1729627237261,1.426,2629.3,2629.0,1.7308]
[1729627237566,1.426,2629.3,2629.0,2.11134]
[1729627237760,2.97,2629.2,2629.0,1.7308]
[1729627238767,2.97,2629.2,2629.0,2.11133]
[1729627239064,1.14145045,2629.8,2629.2,0.3805]
[1729627239065,4.77645,2629.6,2629.2,0.3805]
[1729627239365,4.77645,2629.6,2629.3,0.8894]
[1729627239366,2.97,2629.6,2629.3,0.8894]
[1729627239570,3.35046,2629.6,2629.3,0.8894]
[1729627239768,3.35046,2629.6,2629.4,0.8481]
[1729627239963,3.35046,2629.6,2629.5,0.8301]
[1729627241871,6.7732,2629.6,2629.4,0.8481]
[1729627242069,0.38047,2629.5,2629.4,0.8481]
[1729627242372,0.38048,2629.4,2629.3,0.8894]
[1729627242667,3.35048,2629.4,2629.3,0.8894]
[1729627243170,2.97,2629.4,2629.3,0.8894]
[1729627243371,3.35048,2629.4,2629.3,0.8894]
[1729627243662,2.97,2629.4,2629.3,0.8894]
[1729627244063,2.97,2629.6,2629.3,0.8894]
[1729627244269,1.426,2629.7,2629.4,0.8962]
[1729627244476,6.74860045,2629.8,2629.5,0.8831]
[1729627245065,2.97,2629.6,2629.5,0.8831]
[1729627245270,6.74860045,2629.8,2629.5,0.8831]
[1729627245671,2.97,2629.6,2629.5,0.8831]
[1729627245966,3.39817045,2629.8,2629.5,0.8831]
[1729627246161,2.97,2629.6,2629.5,0.8831]
[1729627246363,3.35045,2629.6,2629.5,0.8831]
[1729627246572,2.97,2629.6,2629.5,0.8831]
[1729627246866,3.35045,2629.6,2629.5,0.8831]
[1729627247569,2.97,2629.6,2629.4,0.8962]
[1729627247775,0.38047,2629.5,2629.4,0.8962]
[1729627250865,3.58827,2629.5,2629.4,0.8962]
[1729627251778,0.38047,2629.5,2629.4,0.8962]
[1729627253374,4.8926726,2629.6,2629.4,0.8962]
[1729627253679,0.38047,2629.5,2629.4,0.8962]
[1729627254076,4.8926726,2629.6,2629.4,0.8962]
[1729627254278,0.38047,2629.5,2629.4,0.8962]
[1729627262390,4.8926726,2629.6,2629.4,0.8962]
[1729627263079,0.4966726,2629.6,2629.4,0.8962]
[1729627263290,1.391,2629.7,2629.5,0.38046]
[1729627263582,3.39817045,2629.8,2629.6,0.38044]
[1729627263900,0.19037045,2629.8,2629.7,0.8949]
[1729627264086,3.857549,2630.0,2629.7,0.8949]
[1729627264274,3.857549,2630.0,2629.7,1.27533]
[1729627264275,3.6723423,2630.0,2629.7,1.27533]
[1729627264585,3.6723423,2630.0,2629.8,0.8327]
[1729627264981,0.1951933,2630.0,2629.8,0.8327]
[1729627265293,2.97,2630.0,2629.8,0.8327]
[1729627265587,3.1564951,2630.0,2629.8,1.21312]
[1729627266082,3.1564951,2630.0,2629.8,0.8327]
[1729627267279,0.1864951,2630.0,2629.8,0.8327]
[1729627267486,6.1778,2630.2,2629.9,4.18281]
[1729627267679,6.55817,2630.2,2629.8,1.21312]
[1729627267884,2.97,2630.0,2629.8,1.21312]
[1729627268384,2.97,2630.0,2629.9,3.8024]
[1729627271685,2.97,2630.0,2629.8,0.8327]
[1729627272280,3.3504,2630.0,2629.8,0.8327]
[1729627273386,2.97,2630.0,2629.8,0.8327]
[1729627273582,0.19495137,2630.2,2629.9,0.3804]
[1729627273782,2.97,2630.2,2629.9,0.3804]
[1729627273990,3.15908955,2630.2,2629.8,0.8327]
[1729627274192,3.53945955,2630.2,2629.9,0.3804]
[1729627274384,3.53945955,2630.2,2629.8,0.8327]
[1729627274585,3.53945955,2630.2,2629.8,1.21311]
[1729627275385,3.15908955,2630.2,2629.9,0.3804]
[1729627276389,3.53945955,2630.2,2629.8,1.21312]
[1729627276592,3.15908955,2630.2,2629.9,0.3804]
[1729627276983,0.18908955,2630.2,2629.9,0.38039]
[1729627277185,15.6988,2630.6,2629.9,7.0102]
[1729627277386,0.38033,2630.5,2630.1,0.38037]
[1729627277591,0.38033,2630.5,2630.2,1.7286]
[1729627277786,0.38033,2630.5,2630.2,2.5995]
[1729627278393,17.77620206,2630.6,2630.2,2.5995]
[1729627278789,0.38035,2630.4,2630.2,2.5995]
[1729627278992,2.97,2630.4,2630.2,2.5995]
[1729627279589,3.35034,2630.4,2630.2,2.5995]
[1729627279788,2.97,2630.4,2630.2,2.5995]
[1729627280199,3.35034,2630.4,2630.2,2.5995]
[1729627280900,2.97,2630.4,2630.2,2.5995]
[1729627282597,2.97,2630.4,2630.2,2.97986]
[1729627284396,13.41620206,2630.6,2630.3,0.38035]
[1729627284796,13.41620206,2630.6,2630.2,2.5995]
[1729627285098,13.79651206,2630.6,2630.2,2.97986]
[1729627285392,4.27551206,2630.6,2630.2,2.97986]
[1729627285585,4.27551206,2630.6,2630.2,2.5995]
[1729627285788,4.27551206,2630.6,2630.2,2.97986]
[1729627286797,3.78096031,2630.6,2630.2,2.97986]
[1729627288695,3.40065031,2630.6,2630.3,0.38034]
[1729627291505,3.40065031,2630.6,2630.2,2.5995]
[1729627291703,0.38033,2630.5,2630.2,2.5995]
[1729627291900,3.78097031,2630.6,2630.2,2.97986]
[1729627293705,3.40065031,2630.6,2630.2,2.5995]
[1729627293909,2.97,2630.5,2630.2,2.5995]
[1729627294099,3.35035,2630.3,2630.2,0.8634]
[1729627294296,2.97,2630.3,2629.7,5.0288]
[1729627294601,3.35039,2630.1,2629.8,0.9888]
[1729627295107,0.9363,2630.0,2629.8,0.9888]
[1729627295598,1.3167,2630.0,2629.8,4.7912]
[1729627296201,2.2391,2630.0,2629.8,5.17162]
[1729627296501,2.2391,2630.0,2629.8,4.7912]
[1729627297008,0.38041,2629.9,2629.8,4.7912]
[1729627297207,2.2391,2630.0,2629.8,4.7912]
[1729627297701,2.2391,2630.0,2629.8,0.9888]
[1729627298101,0.38041,2629.9,2629.8,0.9888]
[1729627298304,1.8587,2630.0,2629.7,1.821]
[1729627298510,0.38041,2629.9,2629.7,1.821]
[1729627299199,0.38042,2629.8,2629.7,1.821]
[1729627299609,0.38042,2629.8,2629.7,5.6234]
[1729627303108,0.38042,2629.8,2629.7,3.8024]
[1729627303415,0.38045,2629.6,2629.5,2.0111]
[1729627303708,1.8587,2630.0,2629.5,2.0111]
[1729627303904,0.38044,2629.7,2629.5,2.39156]
[1729627304307,0.38044,2629.7,2629.6,5.1732]
[1729627305414,0.38041,2629.9,2629.7,0.38043]
[1729627305714,0.38041,2629.9,2629.8,2.3542]
[1729627306210,3.58816,2630.3,2629.8,6.1566]
[1729627306415,3.58815,2630.3,2630.2,1.37]
[1729627306607,1.9264,2630.5,2630.2,1.37]
[1729627306807,1.9264,2630.5,2630.1,0.38037]
[1729627306808,0.19285031,2630.6,2630.4,1.37]
[1729627307010,4.9581,2630.7,2630.5,2.3903]
[1729627307307,5.14437324,2630.7,2630.5,2.3903]
[1729627307513,4.76408324,2630.7,2630.6,0.9493]
[1729627308110,1.55628324,2630.7,2630.6,0.9493]
[1729627308410,0.18628324,2630.7,2630.6,0.9493]
[1729627308609,3.58805,2631.0,2630.6,4.7509]
[1729627308812,0.38026,2631.0,2630.6,1.8889]
[1729627309008,0.38026,2631.0,2630.6,5.0967]
[1729627309312,0.38026,2630.9,2630.6,5.0967]
[1729627310005,0.68872542,2631.0,2630.6,5.0967]
[1729627310211,1.321,2631.2,2630.6,5.0967]
[1729627310412,0.38026,2630.9,2630.6,5.0967]
[1729627310607,0.19449014,2630.9,2630.6,5.0967]
[1729627310916,0.38026,2631.0,2630.6,5.0967]
[1729627311317,0.57195055,2631.0,2630.6,5.0967]
[1729627311819,0.38027,2630.9,2630.6,5.0967]
[1729627312118,2.97,2631.1,2630.6,1.8889]
[1729627312416,0.38027,2630.9,2630.6,1.8889]
[1729627312813,3.16123374,2631.1,2630.6,1.8889]
[1729627313015,0.38026,2630.9,2630.6,1.8889]
[1729627313618,0.38025,2631.0,2630.6,1.8889]
[1729627314315,3.16123374,2631.1,2630.6,1.8889]
[1729627314522,0.38027,2630.9,2630.6,1.8889]
[1729627317018,3.16123374,2631.1,2630.6,1.8889]
[1729627317225,0.38025,2631.0,2630.6,1.8889]
[1729627317421,0.38027,2630.9,2630.6,1.8889]
[1729627322726,0.8714364,2630.9,2630.6,1.8889]
[1729627326330,0.4911664,2630.9,2630.6,1.8889]
[1729627326527,0.19123374,2631.1,2630.6,1.8889]
[1729627326829,0.38028,2630.9,2630.6,1.8889]
[1729627328335,1.75028,2630.8,2630.7,1.37]
[1729627328536,1.37,2630.8,2630.7,1.37]
[1729627328732,1.75028,2630.8,2630.7,1.37]
[1729627329129,1.37,2630.8,2630.6,1.8889]
[1729627329432,0.38031,2630.6,2630.5,3.2078]
[1729627329623,1.75031,2630.6,2630.5,3.2078]
[1729627330235,2.24313235,2630.6,2630.5,3.2078]
[1729627330537,1.86282235,2630.6,2630.5,4.5778]
[1729627330831,2.24313235,2630.6,2630.5,3.2078]
[1729627336139,0.49282235,2630.6,2630.5,3.2078]
[1729627336333,1.37,2630.8,2630.5,4.5778]
[1729627336630,0.38027,2630.9,2630.7,1.37]
[1729627336839,0.38027,2630.9,2630.8,1.0367]
[1729627337034,1.75027,2630.9,2630.8,1.0367]
[1729627340240,0.38031,2630.6,2630.5,5.2031]
[1729627340435,1.75031,2630.6,2630.5,5.2031]
[1729627342443,1.37,2630.8,2630.5,6.5731]
[1729627342637,3.71856595,2631.0,2630.7,1.37]
[1729627342937,1.37,2630.9,2630.8,1.0709]
[1729627343737,1.75026,2630.9,2630.8,1.0709]
[1729627349345,0.3803,2630.7,2630.5,3.3653]
[1729627349638,1.37,2630.7,2630.6,1.0574]
[1729627349845,1.75029,2630.7,2630.6,2.4274]
[1729627353250,1.75029,2630.7,2630.6,1.0574]
[1729627353849,2.24226866,2630.7,2630.6,1.0574]
[1729627355551,1.37,2630.7,2630.6,2.4274]
[1729627355849,1.75029,2630.8,2630.6,2.4274]
[1729627356651,0.19141297,2631.1,2630.8,0.38027]
[1729627356851,4.5778,2631.3,2631.0,1.37]
[1729627357052,3.2078,2631.3,2631.2,1.37]
[1729627357346,3.2078,2631.3,2631.2,1.75022]
[1729627357549,3.2078,2631.3,2631.2,1.37]
[1729627358451,1.75018,2631.5,2631.2,1.37]
[1729627358754,1.75018,2631.5,2631.3,1.37]
[1729627358954,1.75018,2631.5,2631.4,2.1247]
[1729627361760,6.5408,2631.5,2630.7,3.2078]
[1729627361965,2.56227308,2631.6,2630.8,2.449]
[1729627361966,1.37,2630.9,2630.8,2.449]
[1729627362152,0.19330127,2630.9,2630.8,2.449]
[1729627362358,1.37,2631.0,2630.8,2.449]
[1729627362561,1.37,2631.0,2630.9,1.37]
[1729627362962,1.56336627,2631.0,2630.9,1.37]
[1729627363657,1.94361627,2631.0,2630.8,2.449]
[1729627364867,1.94361627,2631.0,2630.9,1.1265]
[1729627365366,1.94361627,2631.0,2630.9,2.4965]
[1729627367564,5.74441627,2631.0,2630.7,0.38029]
[1729627367766,5.74441627,2631.0,2630.6,1.1463]
[1729627367767,0.38029,2630.7,2630.6,1.1463]
[1729627367971,1.75029,2630.7,2630.6,1.1463]
[1729627368480,1.94338898,2630.7,2630.6,1.1463]
[1729627368977,1.94338898,2630.7,2630.6,2.5163]
[1729627371882,1.94338898,2630.7,2630.6,1.1463]
[1729627373379,1.56309898,2630.7,2630.5,3.515]
[1729627373582,1.75031,2630.6,2630.5,2.145]
[1729627373878,1.75031,2630.6,2630.5,3.515]
[1729627376477,1.75031,2630.6,2630.5,6.7228]
[1729627378792,0.38031,2630.6,2630.5,6.7228]
[1729627379481,1.56309898,2630.7,2630.5,6.7228]
[1729627379682,0.57339898,2630.7,2630.6,1.75031]
[1729627380081,0.19309898,2630.7,2630.6,1.75031]
[1729627380283,0.38029,2630.7,2630.6,1.37]
[1729627380490,0.57347696,2630.7,2630.6,1.37]
[1729627380695,1.94347696,2630.7,2630.6,1.37]
[1729627381193,0.57347696,2630.7,2630.6,1.37]
[1729627381492,0.38031,2630.6,2630.5,6.7228]
[1729627381687,1.75031,2630.6,2630.5,3.2078]
[1729627383089,2.86681,2630.6,2630.5,3.2078]
[1729627386491,2.86681,2630.6,2630.5,4.5778]
[1729627388591,2.4865,2630.6,2630.5,4.5778]
[1729627388800,1.56318696,2630.7,2630.5,4.5778]
[1729627388985,1.37,2630.8,2630.6,1.37]
[1729627389192,0.69772936,2630.9,2630.7,1.37]
[1729627389391,1.37,2630.9,2630.8,1.1065]
[1729627389592,1.56366652,2630.9,2630.8,2.1762]
[1729627390202,2.48605,2631.1,2630.8,2.1762]
[1729627390203,1.37,2631.0,2630.8,3.5462]
[1729627390491,1.56176298,2631.0,2630.9,1.0479]
[1729627390796,1.94201298,2631.0,2630.9,1.0479]
[1729627391398,1.56176298,2631.0,2630.9,1.0479]
[1729627393488,1.94201298,2631.0,2630.9,1.0479]
[1729627399891,1.75025,2631.0,2630.9,1.0479]
[1729627400301,0.38026,2630.9,2630.8,2.1762]
[1729627400502,1.75026,2630.9,2630.8,2.1762]
[1729627419218,1.37,2630.9,2630.8,2.1762]
[1729627421616,5.5869,2631.2,2630.8,2.1762]
[1729627421617,1.37,2631.3,2630.8,3.5462]
[1729627421924,1.013,2631.5,2631.2,1.37]
[1729627421925,1.37,2631.4,2631.2,1.37]
[1729627422121,1.37,2631.4,2631.3,4.3802]
[1729627422318,1.55940403,2631.4,2631.3,4.3802]
[1729627422522,0.18940403,2631.4,2631.3,4.76041]
[1729627422824,1.37,2631.4,2631.3,4.3802]
[1729627423024,1.55770986,2631.4,2631.3,4.76041]
[1729627423916,0.18770986,2631.4,2631.3,4.76041]
[1729627424223,1.37,2631.5,2631.4,0.38019]
[1729627424419,0.49635871,2631.7,2631.4,1.75019]
[1729627424420,1.37,2631.6,2631.4,1.75019]
[1729627424618,1.37,2631.7,2631.5,1.75018]
[1729627424818,0.1860728,2631.8,2631.6,1.37]
[1729627425160,0.38013,2631.8,2631.7,1.0135]
[1729627425363,1.94522567,2631.8,2631.7,2.0169]
[1729627425585,1.56509567,2631.8,2631.7,2.0169]
[1729627426255,1.94522567,2631.8,2631.7,2.0169]